bitfinex-derivatives/quotes_BTCF0:USTF0_20251009
["timestamp","ask_amount","ask_price","bid_price","bid_amount"]
[1760032904717,0.05484,120890.0,120880.0,0.42622067]
[1760032905015,0.05484,120880.0,120870.0,2.1468508]
[1760032905220,0.41564,120880.0,120870.0,2.9379708]
[1760032905419,0.41564,120880.0,120870.0,2.1468508]
[1760032905614,0.41564,120880.0,120870.0,2.9378908]
[1760032905810,0.05484,120880.0,120870.0,3.2986908]
[1760032906122,0.05484,120890.0,120880.0,0.0826852]
[1760032906315,0.41483622,120900.0,120890.0,0.0826784]
[1760032906510,0.46483622,120900.0,120890.0,0.8733184]
[1760032906714,0.86483622,120900.0,120890.0,0.8733584]
[1760032906918,0.81483622,120900.0,120890.0,0.8733584]
[1760032907119,0.81483622,120900.0,120890.0,0.0826784]
[1760032907314,0.81483622,120900.0,120890.0,0.8730784]
[1760032907717,1.21031625,120900.0,120890.0,0.7904]
[1760032907917,0.05484,120890.0,120880.0,0.0826813]
[1760032908121,0.05484,120870.0,120860.0,1.9434989]
[1760032908321,0.05489622,120870.0,120860.0,4.7980589]
[1760032908520,5.622e-05,120870.0,120860.0,4.7980589]
[1760032908921,5.622e-05,120870.0,120860.0,4.0078589]
[1760032909221,5.622e-05,120870.0,120860.0,4.7980589]
[1760032909517,5.622e-05,120870.0,120860.0,4.7986589]
[1760032909722,5.622e-05,120870.0,120860.0,4.7996589]
[1760032910222,5.622e-05,120870.0,120860.0,4.0098589]
[1760032910422,5.622e-05,120870.0,120860.0,4.7996589]
[1760032910921,5.622e-05,120870.0,120860.0,4.0098589]
[1760032911122,5.622e-05,120870.0,120860.0,4.7993389]
[1760032912621,5.622e-05,120870.0,120860.0,4.71701893]
[1760032912926,5.622e-05,120870.0,120860.0,5.50565893]
[1760032913117,5.622e-05,120870.0,120860.0,4.71701893]
[1760032913322,5.622e-05,120870.0,120860.0,2.3454989]
[1760032913512,5.622e-05,120870.0,120860.0,5.1988189]
[1760032914922,5.622e-05,120870.0,120860.0,5.50597893]
[1760032915122,5.622e-05,120870.0,120860.0,5.50541893]
[1760032915426,0.05398,120900.0,120890.0,0.0826784]
[1760032915626,0.05398,120900.0,120890.0,0.8707184]
[1760032915922,0.5031,120900.0,120890.0,0.8707184]
[1760032916122,0.5031,120900.0,120890.0,0.0826784]
[1760032916514,0.05484,120890.0,120880.0,0.07307025]
[1760032916819,0.89379843,120890.0,120880.0,2.1300959]
[1760032917023,1.29379843,120890.0,120880.0,2.8524]
[1760032917224,0.14316,120880.0,120870.0,0.0826898]
[1760032917422,0.50396,120880.0,120870.0,0.15576005]
[1760032917622,0.50396,120880.0,120870.0,0.94344005]
[1760032918218,0.81112003,120880.0,120870.0,0.94344005]
[1760032918414,0.81112003,120880.0,120870.0,0.15576005]
[1760032918620,0.50396,120880.0,120870.0,0.94308005]
[1760032918923,0.05484,120870.0,120860.0,1.65576915]
[1760032919115,0.72280003,120870.0,120860.0,1.65576915]
[1760032919320,0.05484,120870.0,120860.0,2.3699389]
[1760032919724,0.41564,120880.0,120870.0,0.0826921]
[1760032919921,0.05484,120880.0,120870.0,0.94317839]
[1760032920119,0.05484,120880.0,120870.0,0.94313839]
[1760032920323,0.05484,120880.0,120870.0,0.8697321]
[1760032920519,0.41564,120890.0,120880.0,0.0826852]
[1760032920724,0.3608,120890.0,120880.0,0.2214783]
[1760032920918,0.41478,120900.0,120890.0,0.0826784]
[1760032921123,0.62478,120900.0,120890.0,0.8698784]
[1760032921323,0.62478,120900.0,120890.0,0.97232489]
[1760032921726,0.62478,120900.0,120890.0,0.8698784]
[1760032921926,0.71128,120900.0,120890.0,0.8697584]
[1760032922125,0.71128,120900.0,120890.0,0.0826784]
[1760032922528,1.01844003,120900.0,120890.0,0.8685984]
[1760032922724,1.11128,120900.0,120890.0,0.0816784]
[1760032922923,1.41844003,120900.0,120890.0,0.94206668]
[1760032923128,1.50111163,120900.0,120890.0,0.07346828]
[1760032923330,1.50111163,120900.0,120890.0,0.86038828]
[1760032923524,1.50111163,120900.0,120890.0,0.86043145]
[1760032924028,1.41844003,120900.0,120890.0,0.94310985]
[1760032924228,0.62478,120900.0,120890.0,0.94278985]
[1760032924427,0.71128,120900.0,120890.0,0.8692784]
[1760032924829,0.71128,120900.0,120890.0,0.0826784]
[1760032925028,1.41844003,120900.0,120880.0,0.15619645]
[1760032925229,0.80902003,120890.0,120880.0,0.15619665]
[1760032925437,0.81186,120890.0,120880.0,0.15619665]
[1760032925732,0.81186,120890.0,120880.0,0.94255665]
[1760032926129,0.81186,120890.0,120880.0,0.8690452]
[1760032926635,0.8945384,120890.0,120880.0,0.8690452]
[1760032926928,0.8945384,120890.0,120880.0,0.0826852]
[1760032927133,1.20169843,120890.0,120880.0,0.8690452]
[1760032927536,1.20169843,120890.0,120880.0,0.0826852]
[1760032927735,1.20169843,120890.0,120880.0,0.8682452]
[1760032928333,1.20169843,120890.0,120880.0,0.0826852]
[1760032928533,1.20169843,120890.0,120880.0,0.8680452]
[1760032929438,1.20169843,120890.0,120880.0,0.0826852]
[1760032929734,0.2237452,120880.0,120870.0,0.18513319]
[1760032929939,1.18170523,120880.0,120870.0,0.97013319]
[1760032930334,1.58170523,120880.0,120870.0,0.18513319]
[1760032930540,1.58170523,120880.0,120870.0,0.96993319]
[1760032930739,1.58170523,120880.0,120870.0,0.10244649]
[1760032930935,1.58170523,120880.0,120870.0,0.85830423]
[1760032931135,1.58170523,120880.0,120870.0,0.94099633]
[1760032931334,1.58170523,120880.0,120870.0,0.8673721]
[1760032931538,1.58170523,120880.0,120870.0,0.78468]
[1760032931840,1.58170523,120880.0,120870.0,0.8673721]
[1760032932041,1.58170523,120880.0,120870.0,0.94100206]
[1760032933143,0.2237521,120870.0,120860.0,0.18514139]
[1760032933442,0.8745521,120870.0,120860.0,0.96974139]
[1760032933642,1.18171213,120870.0,120860.0,0.96974139]
[1760032934343,1.18171213,120870.0,120860.0,0.97074139]
[1760032934936,1.18171213,120870.0,120860.0,0.18614139]
[1760032935141,1.18171213,120870.0,120860.0,0.96970139]
[1760032935541,1.18171213,120870.0,120860.0,0.18614139]
[1760032936233,1.18171213,120870.0,120860.0,0.96954139]
[1760032936636,1.18171213,120870.0,120860.0,0.8670949]
[1760032936835,1.18171213,120870.0,120860.0,0.97018401]
[1760032937034,1.18171213,120870.0,120860.0,0.10408911]
[1760032937235,1.58171213,120870.0,120860.0,0.88700911]
[1760032937441,1.58171213,120870.0,120860.0,0.10408911]
[1760032937836,1.58171213,120870.0,120860.0,0.17774198]
[1760032938036,1.58171213,120870.0,120860.0,0.85745287]
[1760032938241,1.58171213,120870.0,120860.0,0.07465287]
[1760032938437,1.58171213,120870.0,120860.0,0.85777287]
[1760032938643,1.58171213,120870.0,120860.0,0.85769287]
[1760032938846,1.58171213,120870.0,120860.0,0.85761287]
[1760032939242,1.58171213,120870.0,120860.0,0.07465287]
[1760032939548,1.66298094,120870.0,120860.0,0.85741287]
[1760032939747,1.72922726,120870.0,120860.0,0.85741287]
[1760032940043,1.72922726,120870.0,120860.0,0.7836]
[1760032940446,1.72922726,120870.0,120860.0,0.001]
[1760032940746,1.72922726,120870.0,120860.0,0.78344]
[1760032940946,0.2237589,120860.0,120850.0,0.07365287]
[1760032941146,1.27298774,120860.0,120850.0,0.85601287]
[1760032941350,1.27298774,120860.0,120840.0,0.00010365]
[1760032941351,0.2237658,120850.0,120840.0,0.07375652]
[1760032941652,1.26299464,120850.0,120840.0,0.85607652]
[1760032941946,1.26299464,120850.0,120840.0,0.86513625]
[1760032942143,1.26299464,120850.0,120840.0,0.10319276]
[1760032942349,2.05142348,120850.0,120840.0,0.88535276]
[1760032942548,0.1372795,120830.0,120820.0,3.71142384]
[1760032942746,1.53730834,120830.0,120820.0,3.06698089]
[1760032942943,1.53730834,120830.0,120820.0,2.13899705]
[1760032943149,2.09710233,120830.0,120820.0,0.78228]
[1760032943350,2.03036429,120830.0,120820.0,0.85587705]
[1760032943550,0.0827263,120820.0,120810.0,2.36269764]
[1760032943854,1.24301514,120820.0,120810.0,0.85571705]
[1760032944242,1.24301514,120820.0,120810.0,0.07359705]
[1760032944243,1.64301514,120820.0,120810.0,0.07359705]
[1760032944540,0.1372932,120810.0,120780.0,2.07215898]
[1760032944748,0.61223574,120790.0,120780.0,2.07215898]
[1760032944943,0.90223574,120790.0,120780.0,2.15490898]
[1760032945144,1.26303574,120790.0,120780.0,4.35419898]
[1760032945452,1.26303574,120790.0,120780.0,4.51030719]
[1760032945453,1.18028884,120790.0,120780.0,4.51030719]
[1760032945655,1.18028884,120790.0,120780.0,3.72838719]
[1760032945843,1.18028884,120790.0,120780.0,4.51026719]
[1760032946352,1.18028884,120790.0,120780.0,4.51006719]
[1760032946554,1.18028884,120790.0,120780.0,4.51802719]
[1760032947354,1.18028884,120790.0,120780.0,4.44435268]
[1760032947755,1.18028884,120790.0,120780.0,3.66291268]
[1760032947954,0.79186,120790.0,120780.0,3.73638719]
[1760032948154,0.79186,120790.0,120780.0,4.51762719]
[1760032948452,0.79186,120790.0,120780.0,4.5174849]
[1760032948756,1.18028884,120790.0,120780.0,4.5175249]
[1760032949058,1.18028884,120790.0,120780.0,3.7362449]
[1760032949249,1.26303574,120790.0,120780.0,4.5171649]
[1760032949647,1.18028884,120790.0,120780.0,4.5170849]
[1760032949851,1.18028884,120790.0,120780.0,4.44375268]
[1760032950261,0.79186,120790.0,120780.0,4.5170849]
[1760032950451,0.41543276,120800.0,120790.0,0.0827469]
[1760032950757,7.276e-05,120800.0,120790.0,2.08606796]
[1760032950959,7.276e-05,120800.0,120790.0,1.30530796]
[1760032951157,0.41119,120830.0,120820.0,0.0827263]
[1760032951465,0.36039,120830.0,120820.0,0.93687982]
[1760032951759,0.36039,120830.0,120820.0,0.15591982]
[1760032951948,0.36039,120830.0,120820.0,0.8639663]
[1760032952154,1.27822834,120830.0,120820.0,0.15591982]
[1760032952454,0.80708,120830.0,120820.0,0.15591982]
[1760032952659,0.80708,120830.0,120820.0,0.93695982]
[1760032952855,0.8897995,120830.0,120820.0,0.8637663]
[1760032953057,0.8897995,120830.0,120820.0,0.0827263]
[1760032953252,0.80708,120830.0,120820.0,0.8647663]
[1760032953561,1.19550884,120830.0,120820.0,0.8656863]
[1760032953756,0.80708,120830.0,120820.0,0.8656863]
[1760032953951,0.80708,120830.0,120820.0,0.0847263]
[1760032954261,0.31,120830.0,120820.0,2.08116029]
[1760032954464,0.31,120830.0,120820.0,1.30048029]
[1760032954659,0.41119,120850.0,120820.0,2.23705868]
[1760032954859,0.71119,120850.0,120840.0,0.15596469]
[1760032955059,0.71119,120850.0,120840.0,0.93664469]
[1760032955365,0.3,120850.0,120840.0,0.87114144]
[1760032955558,0.3,120850.0,120840.0,1.23194144]
[1760032955758,0.41119,120870.0,120860.0,0.0826989]
[1760032956062,0.72119,120870.0,120860.0,0.0826989]
[1760032956360,0.72119,120870.0,120860.0,0.8637389]
[1760032956565,0.72119,120870.0,120860.0,0.8636189]
[1760032956855,0.72119,120870.0,120860.0,0.8635389]
[1760032957160,0.72119,120870.0,120860.0,0.08930575]
[1760032957361,0.72119,120870.0,120860.0,0.86998575]
[1760032957756,0.31,120870.0,120860.0,0.54772026]
[1760032957957,0.31,120870.0,120860.0,1.40808911]
[1760032958264,0.31,120870.0,120860.0,0.55437567]
[1760032958659,0.31,120870.0,120860.0,3.40089567]
[1760032959267,0.31,120870.0,120860.0,0.55437567]
[1760032959461,0.31,120870.0,120860.0,3.40053567]
[1760032959661,0.31,120870.0,120860.0,2.62029567]
[1760032959861,0.31,120870.0,120860.0,3.36952451]
[1760032960062,0.31,120870.0,120860.0,4.14964451]
[1760032960263,0.31,120870.0,120860.0,4.22286196]
[1760032960764,0.31,120870.0,120860.0,3.05431312]
[1760032961059,0.3608,120890.0,120860.0,4.41744482]
[1760032961259,0.6508,120890.0,120880.0,0.15588138]
[1760032961461,0.6508,120890.0,120880.0,0.93596138]
[1760032961768,0.29,120890.0,120880.0,0.93593639]
[1760032962061,0.29,120890.0,120880.0,0.93593337]
[1760032962463,0.291,120890.0,120880.0,0.93593337]
[1760032962966,0.291,120890.0,120880.0,2.22157337]
[1760032963164,0.291,120890.0,120880.0,3.00109337]
[1760032963360,0.291,120890.0,120880.0,2.93683414]
[1760032963664,0.071,120890.0,120880.0,3.71623414]
[1760032963861,0.071,120890.0,120880.0,3.81858814]
[1760032964458,0.071,120890.0,120880.0,4.17938814]
[1760032964661,0.071,120890.0,120880.0,3.39998814]
[1760032964861,0.071,120890.0,120880.0,4.17938814]
[1760032965266,0.071,120890.0,120880.0,3.29763414]
[1760032965456,0.071,120890.0,120880.0,4.07667414]
[1760032967264,0.3608,120910.0,120880.0,3.29763414]
[1760032967462,0.6108,120910.0,120900.0,0.0826716]
[1760032967768,0.66209,120910.0,120900.0,0.8610716]
[1760032968066,0.66209,120910.0,120900.0,0.0826716]
[1760032968568,0.66309,120910.0,120900.0,2.9262316]
[1760032968966,0.66309,120910.0,120900.0,2.99226308]
[1760032969168,0.66309,120910.0,120900.0,2.21406308]
[1760032969368,0.66309,120910.0,120900.0,2.99218308]
[1760032969868,0.66309,120910.0,120900.0,2.99190308]
[1760032970468,0.6118,120910.0,120900.0,2.21406308]
[1760032970667,0.6118,120910.0,120900.0,3.00249192]
[1760032970862,0.001,120910.0,120900.0,3.78001192]
[1760032971367,0.05229,120910.0,120900.0,1.29793192]
[1760032971564,0.001,120910.0,120900.0,3.75222308]
[1760032971764,0.001,120910.0,120900.0,0.90950308]
[1760032972069,0.05129,120920.0,120910.0,0.0826647]
[1760032972269,0.36129,120920.0,120910.0,0.0826647]
[1760032972661,0.36129,120920.0,120910.0,0.8598647]
[1760032973063,0.36129,120920.0,120910.0,0.0826647]
[1760032973371,0.72209,120920.0,120910.0,0.8597047]
[1760032973572,0.72209,120920.0,120910.0,2.9246247]
[1760032974075,0.36129,120920.0,120910.0,2.9246247]
[1760032974969,0.36129,120920.0,120910.0,0.0826647]
[1760032975166,0.36129,120920.0,120910.0,2.9244647]
[1760032976670,0.05129,120910.0,120900.0,0.42683148]
[1760032976868,0.41209,120910.0,120900.0,2.90715148]
[1760032977068,0.97308354,120910.0,120900.0,2.21354308]
[1760032977372,1.20041884,120910.0,120900.0,2.90715148]
[1760032978069,1.20041884,120910.0,120900.0,2.90815148]
[1760032978469,1.28308354,120910.0,120900.0,0.92590308]
[1760032978673,1.68308354,120910.0,120900.0,0.06703148]
[1760032978867,1.68308354,120910.0,120900.0,0.84311148]
[1760032979976,1.68308354,120910.0,120900.0,0.06703148]
[1760032980274,0.13438,120880.0,120870.0,0.15576749]
[1760032980469,1.22629414,120880.0,120870.0,0.15572873]
[1760032980670,1.62629414,120880.0,120870.0,0.93176873]
[1760032980867,0.1312921,120870.0,120860.0,0.22729596]
[1760032981072,1.28630094,120870.0,120860.0,1.00333596]
[1760032981974,1.68630094,120870.0,120860.0,1.00333596]
[1760032982175,1.60360884,120870.0,120860.0,0.93129653]
[1760032982473,1.60360884,120870.0,120860.0,1.00433596]
[1760032982675,1.60360884,120870.0,120860.0,0.93129653]
[1760032982973,1.60360884,120870.0,120860.0,0.93113653]
[1760032983275,1.60360884,120870.0,120860.0,1.00497596]
[1760032983276,0.3686,120870.0,120860.0,1.00497596]
[1760032983669,0.7294,120870.0,120860.0,0.22929596]
[1760032983870,0.7294,120870.0,120860.0,1.00489596]
[1760032984075,0.7294,120870.0,120860.0,0.15625653]
[1760032984274,0.7294,120870.0,120860.0,1.00477596]
[1760032985172,0.7294,120870.0,120860.0,0.93173653]
[1760032985475,0.81518,120870.0,120860.0,1.00477596]
[1760032985669,1.20360884,120870.0,120860.0,1.00477596]
[1760032986272,1.28630094,120870.0,120860.0,0.22929596]
[1760032986473,1.68630094,120870.0,120860.0,0.91506079]
[1760032986774,1.68630094,120870.0,120860.0,0.14006079]
[1760032987076,1.68630094,120870.0,120860.0,0.14035083]
[1760032987276,1.68630094,120870.0,120860.0,0.002]
[1760032987477,1.69299715,120870.0,120860.0,0.6614]
[1760032987676,1.69299715,120870.0,120860.0,0.77712]
[1760032987973,1.68630094,120870.0,120860.0,0.77712]
[1760032988275,1.6930922,120870.0,120860.0,0.77712]
[1760032988977,1.28630094,120870.0,120860.0,0.8597789]
[1760032989172,1.28630094,120870.0,120860.0,0.0846989]
[1760032989379,1.28630094,120870.0,120860.0,0.8594589]
[1760032989581,1.68630094,120870.0,120860.0,0.77676]
[1760032990080,1.68630094,120870.0,120860.0,0.7766]
[1760032991075,1.68630094,120870.0,120860.0,0.77632]
[1760032991577,1.68630094,120870.0,120860.0,0.77628]
[1760032992680,1.68630094,120870.0,120860.0,0.8589789]
[1760032992982,1.28630094,120870.0,120860.0,0.8586989]
[1760032993380,1.20360884,120870.0,120860.0,0.8587389]
[1760032994285,1.28630094,120870.0,120860.0,0.8587389]
[1760032994587,1.20360884,120870.0,120860.0,0.0846989]
[1760032994773,1.20360884,120870.0,120860.0,0.8585789]
[1760032994977,1.28630094,120870.0,120860.0,0.8585789]
[1760032995176,1.28630094,120870.0,120860.0,0.002]
[1760032995485,1.68630094,120870.0,120860.0,0.77572]
[1760032996882,1.68630094,120870.0,120860.0,0.002]
[1760032997183,1.68630094,120870.0,120860.0,0.39588]
[1760032997372,1.68630094,120870.0,120860.0,0.002]
[1760032997777,1.68630094,120870.0,120860.0,0.68112]
[1760032998278,1.28630094,120870.0,120860.0,0.68112]
[1760032998485,1.28630094,120870.0,120860.0,0.002]
[1760032998682,1.28630094,120870.0,120860.0,0.58632]
[1760032999383,1.28630094,120870.0,120860.0,0.77532]
[1760033000983,1.28630094,120870.0,120860.0,0.002]
[1760033001585,1.20651908,120870.0,120860.0,0.002]
[1760033001780,0.2170858,120850.0,120840.0,0.50186471]
[1760033001987,1.50733278,120850.0,120840.0,0.77302471]
[1760033002382,1.90733278,120850.0,120840.0,0.77302471]
[1760033004188,1.90733278,120850.0,120840.0,0.77298471]
[1760033004591,1.90833278,120850.0,120840.0,0.77298471]
[1760033004884,1.50833278,120850.0,120840.0,0.85573731]
[1760033005090,1.42662698,120850.0,120840.0,0.85549731]
[1760033005289,1.11798,120850.0,120840.0,0.85549731]
[1760033005489,1.2006858,120850.0,120840.0,0.85549731]
[1760033005990,1.2006858,120850.0,120840.0,0.54972847]
[1760033005991,1.11798,120850.0,120840.0,0.54972847]
[1760033006183,0.6714,120850.0,120840.0,1.32228847]
[1760033007500,0.6694,120850.0,120840.0,0.54972847]
[1760033007696,0.07,120850.0,120840.0,1.39601794]
[1760033007996,0.4094,120860.0,120850.0,0.0827058]
[1760033008186,0.6208,120860.0,120850.0,0.18540759]
[1760033008392,0.6694,120860.0,120850.0,1.35836759]
[1760033008895,0.6694,120860.0,120850.0,0.58540759]
[1760033009091,1.14652588,120860.0,120850.0,0.18540759]
[1760033009296,1.14652588,120860.0,120850.0,0.8554258]
[1760033009596,1.14652588,120860.0,120850.0,0.15621251]
[1760033009785,1.14652588,120860.0,120850.0,0.8556658]
[1760033009985,0.2176958,120850.0,120840.0,0.14972847]
[1760033010192,0.7784958,120850.0,120840.0,0.92252847]
[1760033010387,0.69579,120850.0,120840.0,0.92252847]
[1760033010697,0.05097,120850.0,120840.0,0.65266634]
[1760033010892,0.06097,120850.0,120840.0,1.42546634]
[1760033011092,0.06097,120850.0,120840.0,1.32252847]
[1760033011899,0.06097,120850.0,120840.0,0.65267169]
[1760033012104,0.01,120850.0,120840.0,1.73379867]
[1760033012298,0.4094,120870.0,120860.0,0.0826989]
[1760033012598,0.6694,120870.0,120860.0,0.95828768]
[1760033013094,0.6694,120870.0,120860.0,0.18564768]
[1760033013293,0.6694,120870.0,120860.0,0.95808768]
[1760033013799,0.6694,120870.0,120860.0,0.8551389]
[1760033014706,0.6208,120870.0,120860.0,0.4826989]
[1760033015207,0.6208,120870.0,120860.0,1.2549389]
[1760033015501,0.6208,120870.0,120860.0,0.4826989]
[1760033015701,0.26,120870.0,120860.0,1.92426588]
[1760033016004,0.05097,120890.0,120880.0,0.0826852]
[1760033016206,0.05097,120890.0,120880.0,1.17091323]
[1760033016207,0.31097,120890.0,120880.0,1.17091323]
[1760033016497,0.31097,120890.0,120880.0,3.23655323]
[1760033016801,0.31097,120890.0,120880.0,2.46443323]
[1760033016993,0.26,120890.0,120880.0,3.38686377]
[1760033017197,0.41177,120910.0,120900.0,0.0826716]
[1760033017503,0.68177,120910.0,120900.0,0.18558189]
[1760033017698,0.68177,120910.0,120900.0,0.95770189]
[1760033017899,0.68177,120910.0,120900.0,1.35766189]
[1760033018404,0.68277,120910.0,120900.0,3.42306189]
[1760033019206,0.6318,120910.0,120900.0,3.42306189]
[1760033019405,0.6328,120910.0,120900.0,3.3201516]
[1760033020009,0.6328,120910.0,120900.0,3.32567124]
[1760033020212,0.6328,120910.0,120900.0,3.63383822]
[1760033020509,0.6328,120910.0,120900.0,0.48819124]
[1760033020710,0.68377,120910.0,120900.0,3.32503124]
[1760033022307,0.68377,120910.0,120900.0,2.92503124]
[1760033022908,0.68377,120910.0,120900.0,0.08819124]
[1760033023209,0.68377,120910.0,120900.0,2.92471124]
[1760033024001,0.68377,120910.0,120900.0,0.08819124]
[1760033024206,0.76779,120910.0,120900.0,2.15327124]
[1760033024407,0.76779,120910.0,120900.0,2.99781142]
[1760033025610,0.76779,120910.0,120900.0,0.93269142]
[1760033027504,1.15910168,120910.0,120900.0,0.16137142]
[1760033027706,1.15910168,120910.0,120900.0,0.00551964]
[1760033027909,1.15910168,120910.0,120900.0,0.84446018]
[1760033028110,0.1318416,120900.0,120890.0,2.22081798]
[1760033028312,0.71048858,120900.0,120890.0,2.99209798]
[1760033028612,0.79287858,120900.0,120890.0,0.07318018]
[1760033028918,1.19287858,120900.0,120890.0,0.77128]
[1760033029111,0.2142384,120890.0,120880.0,0.25177179]
[1760033029312,0.5242384,120890.0,120880.0,1.09627927]
[1760033029516,0.5242384,120890.0,120880.0,0.13940878]
[1760033029716,0.5242384,120890.0,120880.0,0.91068878]
[1760033029918,0.83288538,120890.0,120880.0,0.22209398]
[1760033030116,0.83288538,120890.0,120880.0,0.13940878]
[1760033030320,0.83288538,120890.0,120880.0,0.91068878]
[1760033030616,1.23288538,120890.0,120880.0,0.91068878]
[1760033031206,1.23288538,120890.0,120880.0,0.99337398]
[1760033033221,1.23288538,120890.0,120880.0,0.9201465]
[1760033033419,1.23288538,120890.0,120880.0,0.99337398]
[1760033034016,1.23288538,120890.0,120880.0,0.13940878]
[1760033034318,1.23288538,120890.0,120880.0,0.99337398]
[1760033035020,0.84156,120890.0,120880.0,0.22209398]
[1760033035213,0.04917,120890.0,120880.0,0.53074096]
[1760033035521,0.0044677,120890.0,120880.0,1.37580992]
[1760033035723,0.0044677,120890.0,120880.0,0.60452992]
[1760033035910,0.0044677,120890.0,120880.0,1.37580992]
[1760033036115,0.0044677,120890.0,120880.0,1.06716294]
[1760033036309,0.0044677,120890.0,120880.0,0.9201465]
[1760033036715,0.0044677,120890.0,120880.0,0.5488665]
[1760033036918,0.04917,120900.0,120890.0,0.0826784]
[1760033037120,0.32917,120900.0,120890.0,0.18552967]
[1760033037319,0.4118416,120900.0,120890.0,0.18552967]
[1760033037520,0.4942316,120900.0,120890.0,0.95676967]
[1760033038820,0.32917,120900.0,120890.0,1.35676967]
[1760033039125,0.41177,120910.0,120900.0,0.0826716]
[1760033039316,0.70177,120910.0,120900.0,0.0826716]
[1760033039717,0.8668247,120910.0,120900.0,0.0826716]
[1760033039911,0.8668247,120910.0,120900.0,0.8539116]
[1760033040221,0.70177,120910.0,120900.0,0.8539116]
[1760033040521,0.8681347,120910.0,120900.0,0.8539116]
[1760033040723,0.04697,120890.0,120880.0,0.29588294]
[1760033041021,0.04697,120890.0,120880.0,3.13208294]
[1760033041221,0.04697,120890.0,120880.0,0.1488665]
[1760033041716,0.92199538,120890.0,120880.0,0.25723558]
[1760033041923,1.18199538,120890.0,120880.0,1.13146279]
[1760033042720,1.18199538,120890.0,120880.0,1.21414799]
[1760033042923,1.18199538,120890.0,120880.0,1.02309371]
[1760033043124,1.18199538,120890.0,120880.0,0.9200665]
[1760033044321,1.18199538,120890.0,120880.0,0.8373813]
[1760033044522,1.18199538,120890.0,120880.0,0.0661813]
[1760033044725,0.2133552,120880.0,120870.0,0.08808218]
[1760033044919,0.4833552,120880.0,120870.0,0.99288218]
[1760033045130,0.4833552,120880.0,120870.0,1.0960076]
[1760033046825,0.4833552,120880.0,120870.0,0.4536076]
[1760033047026,0.79200218,120880.0,120870.0,1.142119]
[1760033047936,0.2133621,120870.0,120860.0,0.10312542]
[1760033048128,0.41067,120870.0,120860.0,0.95702432]
[1760033048426,0.4933621,120870.0,120860.0,0.8538989]
[1760033049424,0.4933621,120870.0,120860.0,0.85926638]
[1760033049622,0.4933621,120870.0,120860.0,0.08806638]
[1760033049829,0.4933621,120870.0,120860.0,0.85926638]
[1760033050124,0.0826989,120860.0,120850.0,2.29479924]
[1760033050320,0.43831588,120860.0,120850.0,3.06600224]
[1760033050826,0.43831588,120860.0,120850.0,0.7712]
[1760033050827,0.66561839,120860.0,120850.0,0.7712]
[1760033051028,0.79528729,120860.0,120850.0,0.8539058]
[1760033051224,0.79528729,120860.0,120850.0,0.85936507]
[1760033051624,0.71258839,120860.0,120850.0,0.85936507]
[1760033052125,0.79528729,120860.0,120850.0,0.85936507]
[1760033052326,0.79528729,120860.0,120850.0,0.77665927]
[1760033052627,0.79528729,120860.0,120850.0,0.85936507]
[1760033053023,0.43067,120860.0,120850.0,0.08816507]
[1760033053229,0.04697,120860.0,120850.0,0.96238]
[1760033053428,0.04697,120860.0,120850.0,1.22478]
[1760033053632,0.04697,120860.0,120850.0,1.12176507]
[1760033054731,0.52201588,120860.0,120850.0,0.77665927]
[1760033054931,0.2133758,120850.0,120840.0,0.31705666]
[1760033055229,0.79202278,120850.0,120840.0,1.17096926]
[1760033055433,0.79202278,120850.0,120840.0,0.29674491]
[1760033055627,0.70931698,120850.0,120840.0,1.06794491]
[1760033055833,0.79202278,120850.0,120840.0,0.92092847]
[1760033056028,0.4833758,120850.0,120840.0,0.92092847]
[1760033056527,0.4833758,120850.0,120840.0,0.14972847]
[1760033056830,0.4833758,120850.0,120840.0,0.92092847]
[1760033057130,0.4833758,120850.0,120840.0,1.02938723]
[1760033057523,0.40067,120850.0,120840.0,1.02938723]
[1760033057726,0.4833758,120850.0,120840.0,1.02938723]
[1760033057931,0.4833758,120850.0,120840.0,0.25818723]
[1760033058132,0.4833758,120850.0,120840.0,1.02938723]
[1760033058928,0.40067,120850.0,120840.0,1.02938723]
[1760033059128,0.13067,120850.0,120840.0,0.92636288]
[1760033059335,0.04697,120850.0,120840.0,0.15516288]
[1760033059630,0.04697,120850.0,120840.0,1.02938723]
[1760033060031,0.13067,120850.0,120840.0,1.02938723]
[1760033060236,0.13067,120850.0,120840.0,0.92636288]
[1760033061034,0.2133758,120850.0,120840.0,0.92636288]
[1760033061336,0.5233758,120850.0,120840.0,0.92636288]
[1760033061937,0.5233758,120850.0,120840.0,0.15516288]
[1760033062132,0.5233758,120850.0,120840.0,0.92636288]
[1760033062332,0.44067,120850.0,120840.0,0.92636288]
[1760033062636,0.17697,120850.0,120840.0,1.02938723]
[1760033063033,0.17697,120850.0,120840.0,0.25818723]
[1760033063336,0.13,120850.0,120840.0,1.02938723]
[1760033063637,0.17697,120850.0,120840.0,1.02938723]
[1760033064034,0.04697,120860.0,120850.0,0.0827058]
[1760033064238,0.1296621,120870.0,120860.0,0.0826989]
[1760033064438,0.5233621,120870.0,120860.0,0.0826989]
[1760033064635,0.5233621,120870.0,120860.0,0.18572325]
[1760033065133,0.91164459,120870.0,120860.0,0.18572325]
[1760033065532,0.91164459,120870.0,120860.0,0.95688325]
[1760033065734,0.35697,120870.0,120860.0,0.95688325]
[1760033066037,0.35697,120870.0,120860.0,0.8538589]
[1760033066639,0.04697,120880.0,120870.0,0.0826921]
[1760033066843,0.32697,120880.0,120870.0,0.95678596]
[1760033067034,0.28,120880.0,120870.0,0.58566596]
[1760033067230,0.28,120880.0,120870.0,1.64209459]
[1760033067440,0.04697,120900.0,120890.0,0.0826784]
[1760033067739,0.5233416,120900.0,120890.0,0.95675247]
[1760033068740,0.5233416,120900.0,120890.0,0.10295407]
[1760033068935,0.91162409,120900.0,120890.0,0.18563247]
[1760033069136,0.91162409,120900.0,120890.0,0.95671247]
[1760033069536,0.91162409,120900.0,120890.0,0.96202003]
[1760033069937,0.35697,120900.0,120890.0,0.19094003]
[1760033070138,0.35697,120900.0,120890.0,0.96198003]
[1760033070446,0.31,120900.0,120890.0,1.0060424]
[1760033070642,0.35632,120900.0,120890.0,1.0060424]
[1760033071544,0.31,120900.0,120890.0,1.50898363]
[1760033072037,0.35632,120900.0,120890.0,1.36196719]
[1760033072634,0.43762,120900.0,120890.0,0.19092719]
[1760033072844,0.35632,120900.0,120890.0,0.19092719]
[1760033073039,0.35632,120900.0,120890.0,0.96188719]
[1760033073241,0.31,120900.0,120890.0,0.96188719]
[1760033073440,0.35632,120900.0,120890.0,0.96188719]
[1760033074241,0.31,120900.0,120890.0,0.96188719]
[1760033074445,0.31,120900.0,120890.0,0.87626845]
[1760033074644,0.31,120900.0,120890.0,1.25886596]